bitfinex/quotes_SOLUSD_20250130
["timestamp","ask_amount","ask_price","bid_price","bid_amount"]
[1738245618076,12.39062011,241.29,241.23,12.39062011]
[1738245618278,12.39062011,241.3,241.22,12.39062011]
[1738245618968,1.5788,241.32,241.25,12.39062011]
[1738245619681,0.03,241.27,241.25,12.39062011]
[1738245620991,0.03,241.27,241.22,12.39062011]
[1738245621698,0.03,241.27,241.23,12.39062011]
[1738245622194,0.03,241.27,241.24,12.39062011]
[1738245622387,0.03,241.27,241.26,12.39062011]
[1738245624698,0.03,241.27,241.25,12.39062011]
[1738245625013,0.03,241.27,241.21,12.39062011]
[1738245625208,12.39062011,241.26,241.19,12.39062011]
[1738245625373,12.42062011,241.27,241.2,12.39062011]
[1738245626095,0.03,241.27,241.21,12.39062011]
[1738245627067,12.42062011,241.27,241.2,12.39062011]
[1738245627787,0.03,241.27,241.21,12.39062011]
[1738245627966,0.03,241.27,241.22,12.39062011]
[1738245628405,0.03,241.27,241.17,20.0]
[1738245628406,0.03,241.27,241.24,12.39062011]
[1738245628587,0.03,241.27,241.25,12.39062011]
[1738245628790,0.03,241.27,241.23,12.39062011]
[1738245628996,0.03,241.27,241.2,12.39062011]
[1738245629175,12.39062011,241.26,241.19,12.39062011]
[1738245629380,12.39062011,241.26,241.18,12.39062011]
[1738245629585,12.39062011,241.26,241.19,12.39062011]
[1738245629906,0.03,241.27,241.25,12.39062011]
[1738245630203,0.03,241.27,241.26,13.01219739]
[1738245630583,20.09642011,241.43,241.29,20.0]
[1738245630782,12.39062011,241.42,241.35,12.39062011]
[1738245630977,12.39062011,241.41,241.34,12.39062011]
[1738245631174,12.39062011,241.4,241.32,12.39062011]
[1738245631383,12.39062011,241.37,241.29,12.39062011]
[1738245631798,12.39062011,241.36,241.28,12.39062011]
[1738245632314,12.39062011,241.32,241.27,20.0]
[1738245632500,12.39062011,241.31,241.27,20.0]
[1738245632886,12.39062011,241.31,241.24,12.39062011]
[1738245633501,12.39062011,241.33,241.25,12.39062011]
[1738245633699,12.39062011,241.32,241.25,12.39062011]
[1738245634101,12.39062011,241.33,241.25,12.39062011]
[1738245634300,12.39062011,241.33,241.26,12.39062011]
[1738245634812,12.39062011,241.36,241.28,12.39062011]
[1738245635036,12.39062011,241.35,241.28,12.39062011]
[1738245637005,4.1437,241.33,241.26,12.39062011]
[1738245638091,4.1437,241.33,241.25,12.39062011]
[1738245638092,12.39062011,241.32,241.25,12.39062011]
[1738245638318,16.53432011,241.33,241.26,12.39062011]
[1738245639215,16.53432011,241.33,241.2,12.39062011]
[1738245639216,4.1437,241.33,241.27,12.39062011]
[1738245639421,12.39062011,241.34,241.27,12.39062011]
[1738245639718,16.53412011,241.34,241.27,12.39062011]
[1738245640222,12.39062011,241.35,241.28,12.39062011]
[1738245640518,16.53382011,241.36,241.28,12.39062011]
[1738245640711,12.39062011,241.37,241.29,12.39062011]
[1738245641389,16.53372011,241.37,241.29,12.39062011]
[1738245642326,12.39062011,241.34,241.27,12.39062011]
[1738245642615,12.39062011,241.32,241.25,12.39062011]
[1738245642819,14.62609,241.37,241.27,12.39062011]
[1738245642820,12.39062011,241.34,241.27,12.39062011]
[1738245643326,12.39062011,241.3,241.26,0.063]
[1738245644191,16.53442011,241.32,241.26,0.063]
[1738245644520,4.1438,241.32,241.26,0.063]
[1738245645114,12.39062011,241.31,241.26,0.063]
[1738245645421,4.1442,241.3,241.26,0.063]
[1738245646422,12.39062011,241.31,241.26,0.063]
[1738245646602,4.1438,241.32,241.26,0.063]
[1738245647924,12.39062011,241.29,241.26,0.063]
[1738245648521,4.1442,241.3,241.26,0.063]
[1738245649527,16.53472011,241.31,241.26,0.063]
[1738245650102,12.39062011,241.29,241.26,0.063]
[1738245650840,4.1445,241.28,241.26,0.063]
[1738245651904,12.39062011,241.27,241.26,0.063]
[1738245652528,4.1445,241.28,241.26,0.063]
[1738245659429,12.39062011,241.27,241.26,0.063]
[1738245660332,16.53532011,241.27,241.26,0.063]
[1738245663314,16.66081011,241.27,241.26,0.063]
[1738245663513,30.19814864,241.27,241.26,0.063]
[1738245663914,16.66081011,241.27,241.26,0.063]
[1738245664135,12.39062011,241.27,241.26,0.063]
[1738245664815,16.53532011,241.27,241.26,0.063]
[1738245667138,16.66081011,241.27,241.26,0.063]
[1738245667444,30.19814864,241.27,241.26,0.063]
[1738245667610,13.66282853,241.26,241.12,18.19282011]
[1738245667813,12.39062011,241.2,241.12,18.19282011]
[1738245668014,12.39062011,241.21,241.13,22.60392011]
[1738245668431,12.39062011,241.2,241.13,18.45692011]
[1738245668633,12.39062011,241.2,241.13,22.60392011]
[1738245669542,4.1458,241.21,241.14,12.39062011]
[1738245670329,16.53642011,241.21,241.13,18.45692011]
[1738245670523,16.53642011,241.21,241.13,12.39062011]
[1738245670720,16.53642011,241.21,241.13,16.53772011]
[1738245671417,16.53642011,241.21,241.13,12.39062011]
[1738245671619,12.39062011,241.17,241.1,4.1476]
[1738245671815,12.39062011,241.17,241.09,12.45362011]
[1738245673043,12.39062011,241.15,241.09,0.063]
[1738245673749,16.53712011,241.17,241.09,12.45362011]
[1738245673949,12.39062011,241.17,241.09,12.45362011]
[1738245674236,12.39062011,241.2,241.12,12.39062011]
[1738245674444,12.39062011,241.16,241.09,12.45362011]
[1738245674639,12.39062011,241.15,241.09,0.063]
[1738245674841,12.39062011,241.16,241.09,12.45362011]
[1738245675253,12.39062011,241.16,241.09,16.60142011]
[1738245675626,12.39062011,241.18,241.11,12.39062011]
[1738245676959,4.1459,241.2,241.09,4.2108]
[1738245676960,12.39062011,241.2,241.13,12.39062011]
[1738245677262,4.1457,241.21,241.15,12.39062011]
[1738245677928,4.1457,241.21,241.13,12.39062011]
[1738245678725,12.39062011,241.2,241.13,12.39062011]
[1738245680155,1.5792,241.24,241.13,12.39062011]
[1738245680156,12.39062011,241.22,241.13,12.39062011]
[1738245680339,10.3612,241.29,241.21,12.39062011]
[1738245680529,4.1445,241.28,241.25,12.39062011]
[1738245680846,4.1445,241.28,241.23,12.39062011]
[1738245681038,0.03,241.27,241.25,12.39062011]
[1738245681347,0.03,241.27,241.23,12.39062011]
[1738245681534,0.03,241.27,241.25,12.39062011]
[1738245683149,0.03,241.27,241.25,16.53562011]
[1738245683520,0.03,241.3,241.25,16.53562011]
[1738245683748,4.1423,241.42,241.3,1.613]
[1738245683931,4.1419,241.44,241.38,12.39062011]
[1738245684130,16.53222011,241.46,241.38,12.39062011]
[1738245684332,4.1412,241.48,241.4,12.39062011]
[1738245684531,4.1412,241.48,241.33,0.6213856]
[1738245684532,4.1409,241.5,241.44,12.39062011]
[1738245685431,4.1409,241.5,241.4,12.39062011]
[1738245685432,12.39062011,241.46,241.4,12.39062011]
[1738245685636,12.39062011,241.46,241.38,12.39062011]
[1738245686132,12.39062011,241.44,241.36,12.39062011]
[1738245686562,12.39062011,241.4,241.32,12.39062011]
[1738245686729,12.39062011,241.38,241.3,14.00362011]
[1738245686925,12.39062011,241.36,241.28,12.39062011]
[1738245688061,4.1433,241.35,241.28,12.39062011]
[1738245688552,4.143,241.37,241.3,12.39062011]
[1738245688739,4.143,241.37,241.32,12.39062011]
[1738245689057,4.143,241.37,241.3,12.39062011]
[1738245689358,12.39062011,241.36,241.28,12.39062011]
[1738245690049,4.1433,241.35,241.28,12.39062011]
[1738245690534,12.39062011,241.34,241.26,12.39062011]
[1738245691737,12.39062011,241.32,241.24,12.39062011]
[1738245691929,4.1437,241.33,241.23,12.39062011]
[1738245691930,12.39062011,241.31,241.23,12.39062011]
[1738245692327,12.39062011,241.32,241.24,12.39062011]
[1738245693345,16.53462011,241.32,241.24,12.39062011]
[1738245693747,16.53462011,241.32,241.25,12.39062011]
[1738245696255,12.39062011,241.29,241.22,12.39062011]
[1738245697260,12.39062011,241.31,241.24,12.39062011]
[1738245697465,12.39062011,241.31,241.23,12.39062011]
[1738245697966,16.65991011,241.32,241.24,12.39062011]
[1738245698452,16.53442011,241.32,241.25,12.39062011]
[1738245699059,4.1438,241.32,241.25,12.39062011]
[1738245699653,4.1438,241.32,241.26,12.39062011]
[1738245700488,12.39062011,241.31,241.24,12.39062011]
[1738245700789,12.39062011,241.29,241.21,12.39062011]
[1738245701059,12.39062011,241.29,241.21,32.39062011]
[1738245701262,12.39062011,241.29,241.22,12.39062011]
[1738245702162,4.1442,241.3,241.24,12.39062011]
[1738245704861,4.1438,241.32,241.25,12.39062011]
[1738245705046,4.1438,241.32,241.27,12.39062011]
[1738245705245,4.1438,241.32,241.28,12.39062011]
[1738245705751,4.1735,241.34,241.3,12.39062011]
[1738245705944,0.03,241.34,241.3,12.39062011]
[1738245706541,0.03,241.34,241.31,12.39062011]
[1738245707560,0.03,241.34,241.32,12.39062011]
[1738245710540,0.03,241.34,241.33,12.39062011]
[1738245713659,0.03,241.34,241.31,12.39062011]
[1738245714063,0.03,241.34,241.29,12.39062011]
[1738245714373,0.03,241.34,241.28,12.39062011]
[1738245714545,4.1735,241.34,241.28,32.39062011]
[1738245714747,0.03,241.34,241.3,12.39062011]
[1738245715355,0.03,241.34,241.28,32.39062011]
[1738245715672,0.03,241.34,241.28,20.0]
[1738245716358,0.03,241.34,241.27,12.39062011]
[1738245716359,0.03,241.34,241.26,12.39062011]
[1738245716563,12.42062011,241.34,241.26,12.39062011]
[1738245716952,12.39062011,241.3,241.24,0.063]
[1738245717151,12.39062011,241.28,241.24,0.063]
[1738245717351,12.39062011,241.26,241.24,0.063]
[1738245718743,4.145,241.25,241.24,0.063]
[1738245719157,4.1448,241.27,241.24,0.063]
[1738245719559,12.39062011,241.28,241.24,0.063]
[1738245719872,12.42062011,241.34,241.27,12.39062011]
[1738245720072,0.03,241.34,241.29,12.39062011]
[1738245720972,0.03,241.34,241.27,4.1446]
[1738245720973,0.03,241.34,241.27,12.39062011]
[1738245721779,12.67160011,241.34,241.27,12.39062011]
[1738245721957,12.67160011,241.34,241.25,12.39062011]
[1738245722464,12.39062011,241.32,241.25,12.39062011]
[1738245722669,12.39062011,241.32,241.24,0.063]
[1738245722858,12.39062011,241.3,241.24,0.063]
[1738245724358,12.39062011,241.28,241.24,0.063]
[1738245724764,12.39062011,241.26,241.24,0.063]
[1738245724970,16.53562011,241.26,241.24,0.063]
[1738245727063,4.145,241.26,241.24,0.063]
[1738245727360,12.39062011,241.28,241.24,0.063]
[1738245727585,10.3601,241.31,241.24,0.063]
[1738245727586,12.39062011,241.3,241.24,0.063]
[1738245727890,12.39062011,241.31,241.24,0.063]
[1738245728180,12.39062011,241.3,241.24,0.063]
[1738245728372,16.53432011,241.33,241.25,12.39062011]
[1738245729758,16.53432011,241.33,241.25,12.45362011]
[1738245732366,4.144,241.31,241.25,0.063]
[1738245735395,12.39062011,241.32,241.25,12.45362011]
[1738245735581,4.1438,241.32,241.26,12.39062011]
[1738245735780,16.53442011,241.32,241.25,12.45362011]
[1738245737989,12.39062011,241.29,241.25,0.063]
[1738245738169,12.39062011,241.28,241.25,0.063]
[1738245738595,0.25098,241.31,241.25,0.063]
[1738245738596,12.39062011,241.27,241.25,0.063]
[1738245739203,0.25098,241.31,241.25,0.063]
[1738245739363,12.39062011,241.26,241.25,0.063]
[1738245739764,12.64160011,241.26,241.25,0.063]
[1738245740088,12.64160011,241.26,241.24,0.063]
[1738245740089,4.145,241.25,241.24,0.063]
[1738245740279,16.53562011,241.25,241.24,0.063]
[1738245741167,30.19844864,241.25,241.24,0.063]
[1738245741772,16.78660011,241.25,241.24,0.063]
[1738245742204,16.91209011,241.25,241.24,0.063]
[1738245742404,30.32393864,241.25,241.24,0.063]
[1738245743380,31.92713864,241.25,241.24,0.0001]
[1738245744313,0.12549,241.2,241.13,0.063]
[1738245744524,12.39062011,241.15,241.13,0.063]
[1738245744818,12.39062011,241.17,241.13,0.063]
[1738245745790,12.39062011,241.15,241.13,0.063]
[1738245745988,0.25098,241.14,241.13,0.063]
[1738245746291,4.39788,241.14,241.13,0.063]
[1738245747482,4.1469,241.14,241.13,0.063]
[1738245747702,4.1467,241.16,241.13,0.063]
[1738245748113,12.64160011,241.14,241.13,0.0001]
[1738245748296,4.1476,241.1,241.02,0.063]
[1738245748483,12.64160011,241.06,241.02,0.063]
[1738245749609,12.39062011,241.06,241.02,0.063]
[1738245750788,16.53892011,241.06,241.02,0.063]
[1738245752189,16.91539011,241.06,241.02,0.063]
[1738245752517,30.32723864,241.06,241.02,0.063]
[1738245753291,30.32723864,241.06,241.05,0.0001]
[1738245754117,31.32723864,241.06,241.05,0.0001]
[1738245754294,32.32723864,241.06,241.05,0.0001]
[1738245754490,30.32723864,241.06,241.05,0.0001]
[1738245755793,30.45272864,241.06,241.05,0.0001]
[1738245757233,17.04088011,241.06,241.05,0.0001]
[1738245764030,17.07088011,241.06,241.05,0.0001]
[1738245769134,30.48272864,241.06,241.05,0.0001]
[1738245769316,36.02738443,241.06,241.05,0.0001]
[1738245770298,22.6155359,241.06,241.05,0.0001]
[1738245776533,18.16749989,241.06,241.05,0.0001]
[1738245776725,31.57934842,241.06,241.05,0.0001]
[1738245776940,20.25098,241.03,241.02,0.0001]
[1738245777227,13.66282853,241.02,241.01,0.0001]
[1738245777434,19.20748499,241.02,241.01,0.0001]
[1738245779137,21.47992263,241.01,241.0,0.0001]
[1738245779616,8.0680741,241.01,241.0,0.0001]
[1738245780019,8.1935641,241.01,241.0,0.0001]
[1738245780212,8.0680741,241.01,241.0,0.0001]
[1738245780422,7.9425841,241.01,241.0,0.0001]
[1738245780738,12.41161077,241.01,241.0,0.0001]
[1738245781249,16.56081077,241.01,241.0,0.0001]
[1738245781476,16.93728077,241.01,241.0,0.0001]
[1738245781937,0.37647,241.0,240.99,0.0001]
[1738245782148,18.75304534,241.0,240.99,0.0001]
[1738245782322,37.7093119,241.0,240.99,0.0001]
[1738245782645,26.29770113,241.0,240.99,0.0001]
[1738245782937,0.25098,240.93,240.88,0.063]
[1738245783122,26.1999293,240.89,240.88,0.063]
[1738245784021,27.1999293,240.89,240.88,0.0001]
[1738245784221,20.37647,240.86,240.85,0.0001]
[1738245784426,46.1999293,240.86,240.85,0.0001]
[1738245785330,50.3516293,240.86,240.85,0.0001]
[1738245787070,36.93978077,240.86,240.85,0.0001]
[1738245787431,50.4771193,240.86,240.85,0.0001]
[1738245789266,62.88873007,240.86,240.85,0.0001]
[1738245789437,14.78831853,240.85,240.84,0.0001]
[1738245789633,33.78831853,240.82,240.79,0.063]
[1738245789856,26.1999293,240.81,240.79,0.063]
[1738245790557,27.1999293,240.81,240.79,0.063]
[1738245791348,30.3525293,240.81,240.79,0.063]
[1738245793450,30.4780193,240.81,240.79,0.063]
[1738245794062,20.37647,240.78,240.77,0.063]
[1738245794267,0.37647,240.77,240.71,0.063]
[1738245794566,12.53710077,240.72,240.71,0.063]
[1738245795051,16.69130077,240.72,240.71,0.063]
[1738245795251,30.3541293,240.72,240.71,0.063]
[1738245796053,42.76574007,240.72,240.71,0.063]
[1738245796664,42.76574007,240.72,240.71,0.0001]
[1738245796971,30.3541293,240.72,240.71,0.0001]
[1738245797459,42.76574007,240.72,240.71,0.0001]
[1738245797865,30.3541293,240.72,240.71,0.0001]
[1738245798251,30.4796193,240.72,240.71,0.0001]
[1738245799266,17.06777077,240.72,240.71,0.0001]
[1738245799766,12.41161077,240.74,240.71,0.0001]
[1738245802596,95.41161077,240.76,240.71,0.0001]
[1738245804792,12.41161077,240.74,240.71,0.0001]
[1738245806874,12.41161077,240.72,240.71,0.0001]
[1738245807187,12.53710077,240.72,240.71,0.0001]
[1738245808393,16.69130077,240.72,240.71,0.0001]
[1738245808589,16.56581077,240.72,240.71,0.0001]
[1738245808806,12.41161077,240.74,240.71,0.0001]
[1738245809484,12.41161077,240.73,240.71,0.0001]
[1738245810400,16.56521077,240.75,240.71,0.0001]
[1738245810699,12.41161077,240.74,240.71,0.0001]
[1738245811073,0.03,240.72,240.71,0.0001]
[1738245818899,12.44161077,240.72,240.71,0.0001]
[1738245819232,16.72130077,240.72,240.71,0.0001]
[1738245819593,30.2586393,240.72,240.71,0.0001]
[1738245820307,16.59581077,240.72,240.71,0.0001]
[1738245820625,0.03,240.72,240.71,0.0001]
[1738245821727,12.44161077,240.72,240.71,0.0001]
[1738245821893,12.69259077,240.72,240.71,0.0001]
[1738245822626,126.33404863,240.72,240.71,0.0001]
[1738245822801,129.93170871,240.72,240.71,0.0001]
[1738245823010,135.91772623,240.72,240.71,0.0001]
[1738245823206,20.37647,240.69,240.68,0.063]
[1738245823410,46.1999293,240.69,240.68,0.063]
[1738245825322,50.3546293,240.69,240.68,0.063]
[1738245825706,0.25098,240.68,240.62,0.063]
[1738245825906,12.41161077,240.63,240.53,12.41161077]
[1738245826102,12.41161077,240.62,240.54,12.41161077]
[1738245826320,12.41161077,240.64,240.56,12.41161077]
[1738245826917,12.41161077,240.6,240.53,20.0]
[1738245827438,12.41161077,240.6,240.54,16.56891077]
[1738245827605,12.41161077,240.63,240.55,12.41161077]
[1738245827927,12.41161077,240.64,240.56,12.41161077]
[1738245828730,0.12549,240.68,240.6,12.41161077]
[1738245828731,12.41161077,240.68,240.6,12.41161077]
[1738245828935,12.41161077,240.69,240.61,12.41161077]
[1738245829927,16.56591077,240.71,240.63,12.41161077]
[1738245830133,12.41161077,240.71,240.63,12.41161077]
[1738245830633,12.41161077,240.67,240.61,12.41161077]
[1738245831138,12.41161077,240.69,240.61,12.41161077]
[1738245831313,12.41161077,240.71,240.63,12.41161077]
[1738245831507,0.03,240.72,240.65,12.41161077]
[1738245832014,12.41161077,240.71,240.63,12.41161077]
[1738245833740,12.41161077,240.71,240.63,16.56721077]
[1738245833913,0.03,240.72,240.65,12.41161077]
[1738245835938,1.25098,240.56,240.48,6.46423901]
[1738245836135,12.41161077,240.56,240.48,6.46423901]
[1738245836307,12.41161077,240.58,240.48,6.46423901]
[1738245836828,13.78831853,240.57,240.48,6.46423901]
[1738245837234,12.41161077,240.52,240.48,6.46423901]
[1738245837421,12.41161077,240.5,240.48,6.46423901]
[1738245838329,16.56961077,240.5,240.48,6.46423901]
[1738245838821,16.56961077,240.5,240.46,0.063]
[1738245840656,6.6203529,240.53,240.46,0.063]
[1738245840657,16.56931077,240.52,240.46,0.063]
[1738245841545,12.41161077,240.5,240.46,0.063]
[1738245841731,16.56971077,240.5,240.41,12.41161077]
[1738245841959,12.41161077,240.48,240.39,32.41161077]
[1738245842125,12.41161077,240.43,240.36,8.1384]
[1738245842738,12.41161077,240.41,240.33,12.41161077]
[1738245842953,12.41161077,240.41,240.31,12.47461077]
[1738245843129,12.41161077,240.33,240.31,0.063]
[1738245843750,17.82392853,240.32,240.31,0.063]
[1738245844131,12.41161077,240.33,240.31,0.063]
[1738245844933,12.41161077,240.37,240.31,0.063]
[1738245845135,0.12549,240.36,240.31,0.063]
[1738245845453,12.41161077,240.32,240.31,0.063]
[1738245847027,12.53710077,240.32,240.31,0.063]
[1738245847226,0.12549,240.3,240.21,12.41161077]
[1738245847427,12.41161077,240.28,240.21,12.41161077]
[1738245847846,12.41161077,240.25,240.17,16.57521077]
[1738245848040,12.41161077,240.29,240.21,12.41161077]
[1738245848354,4.1605,240.35,240.19,12.41161077]
[1738245848355,12.41161077,240.27,240.19,12.41161077]
[1738245849034,12.41161077,240.27,240.19,32.41161077]
[1738245849337,4.1615,240.3,240.13,16.57591077]
[1738245849338,12.41161077,240.21,240.13,16.57591077]
[1738245849535,12.41161077,240.23,240.15,12.41161077]
[1738245849848,12.41161077,240.25,240.17,12.41161077]
[1738245850245,12.41161077,240.23,240.15,12.41161077]
[1738245850633,12.41161077,240.19,240.11,4.1646]
[1738245850954,12.41161077,240.19,240.12,4.1645]
[1738245851138,12.41161077,240.19,240.13,20.0]
[1738245851338,12.41161077,240.19,240.12,4.1645]
[1738245852158,12.41161077,240.17,240.1,16.57631077]
[1738245852468,12.41161077,240.12,240.06,0.063]
[1738245852630,12.41161077,240.09,240.06,0.063]
[1738245852829,12.41161077,240.11,240.06,0.063]
[1738245853358,12.41161077,240.08,240.06,0.063]
[1738245853539,12.41161077,240.09,240.06,0.063]
[1738245853932,12.41161077,240.13,240.06,4.2284]
[1738245854252,20.7931,240.23,240.09,12.41161077]
[1738245854253,12.41161077,240.17,240.09,12.41161077]
[1738245854760,19.99677903,240.17,240.1,19.99677903]
[1738245854958,19.99677903,240.15,240.08,24.16197903]
[1738245855149,19.99677903,240.14,240.08,4.1652]
[1738245855553,19.99677903,240.12,240.06,4.2284]
[1738245856464,19.99677903,240.14,240.06,4.2284]
[1738245856774,19.99677903,240.14,240.08,4.1652]
[1738245856936,19.99677903,240.16,240.09,19.99677903]
[1738245857848,19.99677903,240.18,240.09,19.99677903]
[1738245858464,19.99677903,240.16,240.1,4.1649]
[1738245858958,19.99677903,240.17,240.1,24.16167903]
[1738245859130,1.0,240.15,240.06,20.0]
[1738245859335,1.0,240.15,240.1,19.99677903]
[1738245859532,19.99677903,240.17,240.06,20.0]
[1738245859533,1.0,240.12,240.06,19.99677903]
[1738245860741,1.0,240.12,240.07,19.99677903]
[1738245861160,2.0,240.14,240.07,19.99677903]
[1738245861352,1.0,240.14,240.1,19.99677903]
[1738245861961,1.0,240.14,240.09,19.99677903]
[1738245862161,1.0,240.14,240.07,19.99677903]
[1738245862358,19.99677903,240.13,240.06,19.99677903]
[1738245862560,19.99677903,240.13,240.07,4.1654]
[1738245862941,2.0,240.14,240.07,4.1654]
[1738245863264,1.0,240.12,240.07,4.1654]
[1738245864045,1.0,240.13,240.07,4.1654]
[1738245864247,1.0,240.14,240.07,4.1654]
[1738245864664,1.0,240.13,240.07,4.1654]
[1738245865158,1.0,240.12,240.05,4.1656]
[1738245865463,1.0,240.1,240.05,4.1656]
[1738245866542,1.0,240.11,240.05,4.1656]
[1738245866744,1.0,240.11,240.06,19.99677903]
[1738245867466,1.0,240.12,240.06,19.99677903]
[1738245867967,1.0,240.12,240.05,4.1656]
[1738245867968,1.0,240.13,240.08,19.99677903]
[1738245868966,1.0,240.11,240.08,19.99677903]
[1738245869265,1.0,240.1,240.06,0.063]
[1738245869469,1.0,240.11,240.06,24.22537903]
[1738245870275,2.0,240.13,240.06,24.22537903]
[1738245870479,2.0,240.15,240.08,19.99677903]
[1738245870646,1.0,240.18,240.12,19.99677903]
[1738245870979,1.0,240.18,240.13,4.1644]
[1738245871360,1.0,240.2,240.14,19.99677903]
[1738245871574,1.0,240.21,240.14,19.99677903]
[1738245872161,1.0,240.19,240.14,5.52341884]
[1738245872484,2.0,240.21,240.14,19.99677903]
[1738245872775,0.03,240.22,240.16,19.99677903]
[1738245872950,0.03,240.22,240.17,4.1637]
[1738245873152,1.03,240.22,240.17,4.1637]
[1738245873351,22.02677903,240.22,240.14,24.16097903]
[1738245874377,22.02677903,240.22,240.16,19.99677903]
[1738245874378,2.03,240.22,240.16,19.99677903]
[1738245875490,2.03,240.22,240.16,24.16047903]
[1738245876188,1.0,240.19,240.12,19.99677903]
[1738245876391,19.99677903,240.19,240.11,19.99677903]
[1738245876694,12.49878172,240.15,240.08,12.49878172]
[1738245876899,12.49878172,240.13,240.06,4.2286]
[1738245877104,12.49878172,240.13,240.06,0.063]
[1738245877974,12.49878172,240.13,240.06,4.2285]
[1738245881076,12.49878172,240.11,240.06,4.2285]
[1738245881281,12.49878172,240.11,240.06,0.063]
[1738245882190,16.66348172,240.11,240.06,0.063]
[1738245885004,0.12549,240.14,240.06,4.2284]
[1738245885005,12.49878172,240.13,240.06,4.2284]
[1738245885505,12.49878172,240.11,240.06,4.2284]
[1738245886102,32.49878172,240.13,240.06,4.2284]
[1738245886307,12.49878172,240.12,240.06,4.2284]
[1738245887515,12.49878172,240.1,240.06,4.2284]
[1738245887802,11.99878172,240.1,240.06,0.063]
[1738245888109,12.49878172,240.08,240.06,0.063]
[1738245888305,4.29009,240.12,240.06,0.063]
[1738245888306,12.49878172,240.07,240.06,0.063]
[1738245888678,16.66418172,240.07,240.06,0.063]
[1738245889288,16.78967172,240.07,240.06,0.063]
[1738245891395,12.49878172,240.07,240.06,0.063]
[1738245891607,12.49878172,240.1,240.06,0.063]
[1738245891906,1.5397,240.13,240.06,16.72718172]
[1738245891907,14.03848172,240.13,240.06,16.72718172]
[1738245892213,12.49878172,240.13,240.06,16.72718172]
[1738245892410,12.49878172,240.13,240.06,4.2284]
[1738245892711,12.49878172,240.11,240.06,4.2284]
[1738245893091,12.49878172,240.12,240.06,4.2284]
[1738245894512,12.49878172,240.11,240.06,4.2284]
[1738245895011,12.49878172,240.12,240.06,4.2284]
[1738245895691,16.66328172,240.12,240.06,0.063]
[1738245895887,12.49878172,240.12,240.06,0.063]
[1738245896088,12.49878172,240.12,240.06,4.2285]
[1738245899113,16.66338172,240.12,240.06,0.063]
[1738245899316,12.49878172,240.1,240.06,0.063]
[1738245899993,12.49878172,240.12,240.06,4.2284]
[1738245901001,12.49878172,240.12,240.06,0.063]
[1738245901194,12.49878172,240.1,240.06,0.063]
[1738245901730,12.49878172,240.12,240.06,0.063]
[1738245902515,12.49878172,240.08,240.06,0.063]
[1738245903092,4.1654,240.07,240.06,0.063]
[1738245904403,4.29089,240.07,240.06,0.063]
[1738245904819,17.82822853,240.07,240.06,0.063]
[1738245906946,12.49878172,240.08,240.06,0.063]
[1738245907457,12.49878172,240.07,240.06,0.063]
[1738245907755,12.62427172,240.07,240.06,0.063]
[1738245907946,0.12549,240.06,239.94,20.0]
[1738245908125,12.49878172,240.01,239.94,20.0]
[1738245909252,12.49878172,240.01,239.95,4.1675]
[1738245910134,12.49878172,239.99,239.93,4.1677]
[1738245910459,12.49878172,239.99,239.91,16.66678172]
[1738245910864,4.1665,240.01,239.91,4.168]
[1738245911036,12.49878172,239.98,239.91,4.168]
[1738245911859,16.66578172,239.98,239.91,4.168]
[1738245912233,12.49878172,239.96,239.9,16.66708172]
[1738245912542,12.49878172,239.98,239.9,16.66708172]
[1738245915365,12.49878172,240.0,239.92,12.49878172]
[1738245915538,12.49878172,240.01,239.94,12.49878172]
[1738245915732,12.49878172,240.01,239.9,4.1683]
[1738245915733,12.49878172,240.05,239.98,12.49878172]
[1738245916036,12.49878172,240.07,240.0,12.49878172]
[1738245916570,12.49878172,240.07,239.98,12.49878172]
[1738245917268,12.49878172,240.05,239.96,12.49878172]
[1738245917443,12.49878172,240.05,239.97,4.1671]
[1738245917631,12.49878172,240.05,239.98,12.49878172]
[1738245918046,12.49878172,240.07,239.98,12.49878172]
[1738245919028,12.49878172,240.07,239.99,4.1668]
[1738245919934,12.49878172,240.07,240.0,12.49878172]
[1738245920964,12.49878172,240.09,240.02,12.49878172]